bitfinex/quotes_SOLUSD_20220218
["timestamp","ask_amount","ask_price","bid_price","bid_amount"]
[1645202677961,16.2813,91.459,91.34,54.7387]
[1645202677962,1.53503688,91.417,91.34,54.7387]
[1645202678161,0.25,91.424,91.261,10.00316695]
[1645202678162,1.53503688,91.407,91.327,24.2801]
[1645202678561,1.53503688,91.399,91.327,24.2801]
[1645202678961,1.53503688,91.399,91.328,148.48237097]
[1645202679160,1.53503688,91.4,91.328,148.48237097]
[1645202679361,1.53503688,91.4,91.34,16.4247]
[1645202679765,1.53503688,91.401,91.34,16.4247]
[1645202680362,1.53503688,91.408,91.341,0.25]
[1645202680564,12.82,91.41,91.351,40.91073907]
[1645202681163,0.25,91.409,91.351,40.91073907]
[1645202681367,1.53503688,91.408,91.351,40.91073907]
[1645202681564,1.53503688,91.407,91.351,40.91073907]
[1645202681865,1.53503688,91.408,91.351,40.91073907]
[1645202682067,12.82,91.41,91.351,40.91073907]
[1645202682265,12.82,91.41,91.36,109.4]
[1645202682465,12.82,91.41,91.361,0.25]
[1645202682666,1.53503688,91.417,91.361,0.25]
[1645202683068,1.53503688,91.415,91.361,0.25]
[1645202683265,0.25,91.414,91.361,0.25]
[1645202683465,0.25,91.414,91.371,41.77834669]
[1645202683767,1.53503688,91.413,91.371,41.77834669]
[1645202684166,1.53503688,91.41,91.371,41.77834669]
[1645202684368,1.53503688,91.409,91.371,41.77834669]
[1645202684569,1.53503688,91.407,91.371,41.77834669]
[1645202684967,1.53503688,91.407,91.35,16.4246]
[1645202684968,1.53503688,91.402,91.342,0.94954576]
[1645202685168,1.53503688,91.4,91.342,0.94954576]
[1645202685368,1.53503688,91.397,91.342,0.94954576]
[1645202685567,1.53503688,91.392,91.342,0.94954576]
[1645202685771,1.53503688,91.385,91.342,0.94954576]
[1645202685970,12.82,91.39,91.342,0.94954576]
[1645202685971,1.53503688,91.383,91.343,43.64476103]
[1645202686168,1.53503688,91.382,91.343,43.64476103]
[1645202686669,1.53503688,91.381,91.343,43.64476103]
[1645202686870,1.53503688,91.383,91.343,43.64476103]
[1645202687070,1.53503688,91.386,91.343,43.64476103]
[1645202687467,1.53503688,91.38,91.343,43.64476103]
[1645202687668,0.25,91.379,91.343,43.64476103]
[1645202687869,12.82,91.39,91.343,43.64476103]
[1645202687870,1.53503688,91.38,91.343,43.64476103]
[1645202688469,1.53503688,91.377,91.343,43.64476103]
[1645202688669,1.53503688,91.38,91.343,43.64476103]
[1645202688870,1.53503688,91.383,91.343,43.64476103]
[1645202689468,1.53503688,91.381,91.373,0.94485802]
[1645202689674,1.53503688,91.382,91.373,3.97705799]
[1645202690071,1.53503688,91.382,91.373,0.94485802]
[1645202690470,1.53503688,91.381,91.373,0.94485802]
[1645202691072,29.2504,91.39,91.373,0.94485802]
[1645202692176,0.25,91.389,91.28,54.7712]
[1645202692373,16.4358,91.37,91.269,16.4409]
[1645202692573,12.82,91.36,91.27,47.9733]
[1645202692772,1.54544563,91.358,91.27,47.9733]
[1645202693072,1.54544563,91.358,91.326,55.28419645]
[1645202693271,12.82,91.36,91.326,55.28419645]
[1645202693272,1.54544563,91.357,91.326,55.28419645]
[1645202693472,1.54544563,91.355,91.326,55.28419645]
[1645202693872,1.54544563,91.354,91.326,55.28419645]
[1645202694176,1.54544563,91.356,91.326,55.28419645]
[1645202694372,1.54544563,91.358,91.326,55.28419645]
[1645202694571,29.2565,91.36,91.326,55.28419645]
[1645202694572,1.54544563,91.359,91.326,55.28419645]
[1645202694774,16.4369,91.35,91.326,55.28419645]
[1645202694970,16.4369,91.35,91.28,16.4363]
[1645202695174,16.4369,91.35,91.27,64.4112]
[1645202695573,12.82,91.34,91.27,64.4112]
[1645202695774,0.25,91.339,91.27,64.4112]
[1645202695974,0.25,91.339,91.305,50.90235143]
[1645202697378,12.82,91.34,91.305,50.90235143]
[1645202699379,12.82,91.34,91.328,0.83355659]
[1645202699578,12.82,91.36,91.329,41.24361985]
[1645202700381,12.82,91.36,91.328,0.83355659]
[1645202700583,1.54544563,91.356,91.328,0.83355659]
[1645202700781,1.54544563,91.347,91.328,0.83355659]
[1645202700983,12.82,91.34,91.328,0.83355659]
[1645202701388,109.4,91.339,91.266,41.87741148]
[1645202701583,5.724,91.338,91.28,40.48783468]
[1645202701983,5.724,91.338,91.308,51.91972946]
[1645202702185,1.79544563,91.338,91.308,51.91972946]
[1645202702385,1.79544563,91.338,91.251,24.0004]
[1645202702587,5.474,91.337,91.231,23.766]
[1645202702884,1.54544563,91.334,91.232,0.25]
[1645202703085,12.82,91.32,91.232,0.25]
[1645202703287,12.82,91.32,91.232,49.24738483]
[1645202703484,12.82,91.32,91.241,109.4]
[1645202703985,12.82,91.32,91.232,49.24738483]
[1645202704984,12.82,91.32,91.232,48.99738483]
[1645202705187,0.25,91.319,91.25,16.4415]
[1645202705387,0.25,91.319,91.251,43.31490256]
[1645202705786,12.82,91.32,91.251,152.71490256]
[1645202705986,5.477,91.337,91.251,152.71490256]
[1645202706287,16.4384,91.35,91.282,46.94056702]
[1645202707487,14.36544563,91.36,91.283,109.4]
[1645202707488,12.82,91.36,91.283,109.4]
[1645202707690,12.82,91.36,91.284,0.25]
[1645202708088,1.54544563,91.375,91.285,109.4]
[1645202708288,1.54544563,91.375,91.287,109.4]
[1645202708488,1.54544563,91.379,91.321,54.66633523]
[1645202708889,1.54544563,91.38,91.321,54.66633523]
[1645202709189,1.54544563,91.381,91.321,54.66633523]
[1645202709389,1.54544563,91.379,91.321,54.66633523]
[1645202709590,1.54544563,91.381,91.321,54.66633523]
[1645202709792,1.54544563,91.378,91.321,54.66633523]
[1645202710195,1.54544563,91.382,91.321,54.66633523]
[1645202710392,0.25,91.381,91.322,0.25]
[1645202710593,1.54544563,91.388,91.322,0.25]
[1645202710793,1.54544563,91.395,91.322,0.25]
[1645202711198,1.54544563,91.406,91.37,16.4218]
[1645202711396,1.54544563,91.407,91.371,47.99057474]
[1645202711599,1.54544563,91.416,91.371,47.99057474]
[1645202711796,1.54544563,91.417,91.371,47.99057474]
[1645202712397,1.54544563,91.414,91.371,47.99057474]
[1645202712597,1.54544563,91.412,91.371,47.99057474]
[1645202712799,1.54544563,91.409,91.371,47.99057474]
[1645202713005,1.54544563,91.41,91.371,47.99057474]
[1645202713416,1.54544563,91.409,91.371,47.99057474]
[1645202713612,0.25,91.408,91.371,47.99057474]
[1645202713814,1.54544563,91.407,91.371,47.99057474]
[1645202714013,1.54544563,91.406,91.371,47.99057474]
[1645202714413,1.54544563,91.406,91.36,16.4234]
[1645202714614,1.54544563,91.406,91.31,54.7558]
[1645202714814,1.54544563,91.402,91.31,54.7558]
[1645202715013,1.54544563,91.398,91.31,54.7558]
[1645202715415,1.54544563,91.398,91.324,50.60659693]
[1645202716515,4.17482873,91.398,91.324,50.60659693]
[1645202716716,109.4,91.396,91.324,50.60659693]
[1645202717016,18.47353604,91.397,91.324,50.60659693]
[1645202717017,1.54544563,91.374,91.324,50.60659693]
[1645202717220,7.01844563,91.373,91.324,50.60659693]
[1645202717417,16.4343,91.37,91.324,50.60659693]
[1645202717617,1.54544563,91.372,91.324,50.60659693]
[1645202718019,1.54544563,91.384,91.324,50.60659693]
[1645202718419,1.54544563,91.385,91.325,109.4]
[1645202718618,1.54544563,91.388,91.325,109.4]
[1645202718818,1.54544563,91.389,91.325,109.4]
[1645202719018,1.54544563,91.39,91.325,109.4]
[1645202719220,1.54544563,91.39,91.373,0.83070468]
[1645202719524,1.54544563,91.393,91.374,46.63749341]
[1645202719719,0.25,91.392,91.374,46.63749341]
[1645202719919,1.79544563,91.393,91.374,46.63749341]
[1645202720421,1.54544563,91.392,91.374,46.63749341]
[1645202720623,1.79544563,91.393,91.374,46.63749341]
[1645202721228,1.54544563,91.392,91.374,46.63749341]
[1645202722222,1.54544563,91.391,91.374,46.63749341]
[1645202722423,1.54544563,91.391,91.373,0.83070468]
[1645202722624,1.54544563,91.392,91.373,0.83070468]
[1645202723326,1.54544563,91.392,91.374,46.98600167]
[1645202723826,1.54544563,91.391,91.374,46.98600167]
[1645202724227,1.54544563,91.391,91.376,0.8302512]
[1645202724424,29.2482,91.4,91.376,0.8302512]
[1645202724425,1.54544563,91.393,91.376,0.8302512]
[1645202724825,1.54544563,91.39,91.376,0.8302512]
[1645202725025,1.54544563,91.391,91.376,0.8302512]
[1645202725326,0.25,91.392,91.376,0.8302512]
[1645202725525,1.54544563,91.406,91.376,0.8302512]
[1645202725930,1.54544563,91.416,91.376,0.8302512]
[1645202726130,1.54544563,91.417,91.376,0.8302512]
[1645202726328,12.82,91.44,91.376,0.8302512]
[1645202726329,1.54544563,91.421,91.376,0.8302512]
[1645202726528,1.54544563,91.416,91.376,0.8302512]
[1645202726928,1.54544563,91.417,91.376,0.8302512]
[1645202727129,1.53971485,91.42,91.376,0.8302512]
[1645202727333,0.25,91.419,91.376,1.0802512]
[1645202727532,1.53971485,91.424,91.376,1.0802512]
[1645202727929,1.53971485,91.426,91.391,39.08764515]
[1645202728331,1.53971485,91.427,91.391,39.08764515]
[1645202728534,0.25,91.426,91.391,39.08764515]
[1645202728730,1.53971485,91.438,91.391,39.08764515]
[1645202728932,1.53971485,91.439,91.391,39.08764515]
[1645202729130,1.53971485,91.442,91.391,39.08764515]
[1645202729331,1.53971485,91.441,91.391,39.08764515]
[1645202729531,1.53971485,91.44,91.391,39.08764515]
[1645202729930,1.53971485,91.442,91.391,39.08764515]
[1645202730132,0.25,91.441,91.391,39.08764515]
[1645202731137,1.53971485,91.443,91.391,39.08764515]
[1645202731334,0.25,91.442,91.391,39.08764515]
[1645202732341,1.53971485,91.445,91.391,39.08764515]
[1645202732735,1.53971485,91.442,91.391,39.08764515]
[1645202733136,1.53971485,91.444,91.369,5.469]
[1645202733340,12.82,91.43,91.328,161.6659]
[1645202733537,12.82,91.42,91.328,46.7969]
[1645202733740,5.472,91.419,91.328,46.7969]
[1645202733936,1.53971485,91.412,91.328,46.7969]
[1645202734136,1.53971485,91.406,91.329,43.80446014]
[1645202734336,5.472,91.405,91.329,43.80446014]
[1645202734737,1.53971485,91.398,91.329,43.80446014]
[1645202735237,1.53971485,91.397,91.329,43.80446014]
[1645202735736,1.53971485,91.395,91.329,43.80446014]
[1645202735937,5.472,91.409,91.33,16.426]
[1645202735938,1.53971485,91.399,91.33,16.426]
[1645202736141,1.53971485,91.399,91.331,0.25]
[1645202736441,1.53971485,91.398,91.331,0.25]
[1645202736643,1.53971485,91.398,91.33,16.426]
[1645202736840,1.53971485,91.398,91.331,0.25]
[1645202737039,1.53971485,91.394,91.331,0.25]
[1645202737239,1.53971485,91.393,91.331,0.25]
[1645202737438,1.53971485,91.394,91.331,0.25]
[1645202737640,1.53971485,91.393,91.331,0.25]
[1645202737839,1.53971485,91.392,91.331,0.25]
[1645202738242,1.53971485,91.392,91.33,16.426]
[1645202738442,1.53971485,91.389,91.33,16.426]
[1645202738841,1.53971485,91.388,91.331,0.25]
[1645202739044,1.53971485,91.391,91.331,0.25]
[1645202739462,0.25,91.39,91.331,109.65]
[1645202739865,0.25,91.391,91.341,109.4]
[1645202740062,1.53971485,91.4,91.342,0.25]
[1645202740264,0.25,91.399,91.344,51.23398472]
[1645202740563,1.53971485,91.401,91.345,0.25]
[1645202740763,1.53971485,91.402,91.345,0.25]
[1645202740963,1.53971485,91.401,91.345,0.25]
[1645202741164,1.53971485,91.401,91.35,16.4226]
[1645202741364,1.53971485,91.399,91.344,51.23398472]
[1645202741569,1.53971485,91.398,91.344,51.23398472]
[1645202741764,1.53971485,91.399,91.345,0.25]
[1645202741964,1.53971485,91.399,91.344,51.23398472]
[1645202742464,1.53971485,91.398,91.344,51.23398472]
[1645202743266,1.53971485,91.403,91.345,0.25]
[1645202743467,1.78971485,91.402,91.35,16.4227]
[1645202743666,1.78971485,91.402,91.351,0.25]
[1645202743866,0.25,91.402,91.351,0.25]
[1645202744866,1.53971485,91.407,91.361,109.4]
[1645202745068,3.08846843,91.44,91.363,109.4]
[1645202745267,3.08846843,91.44,91.367,109.4]
[1645202745468,5.70488779,91.472,91.375,175.67]
[1645202745667,4.63633688,91.509,91.381,180.67]
[1645202745868,4.63633688,91.522,91.383,175.67]
[1645202746070,4.63633688,91.522,91.391,175.67]
[1645202746268,47.21726177,91.52,91.422,43.27520851]
[1645202746467,47.21726177,91.52,91.423,121.116]
[1645202746670,53.41525629,91.52,91.423,121.116]
[1645202746871,6.19799452,91.519,91.423,123.7453831]
[1645202747072,6.19799452,91.519,91.431,109.4]
[1645202747275,6.19799452,91.519,91.441,109.4]
[1645202747472,6.19799452,91.519,91.442,52.2581971]
[1645202747876,5.465,91.518,91.442,52.0081971]
[1645202748075,0.25,91.517,91.442,52.0081971]
[1645202748276,11.66299452,91.516,91.442,52.0081971]
[1645202748476,6.19799452,91.515,91.442,52.0081971]
[1645202748679,5.465,91.514,91.45,16.4046]
[1645202748879,6.19799452,91.513,91.45,16.4046]
[1645202749080,5.465,91.512,91.45,16.4046]
[1645202749283,5.465,91.516,91.45,16.4046]
[1645202749481,6.19863324,91.515,91.45,16.4046]
[1645202749680,0.25,91.517,91.451,0.25]
[1645202750081,0.25,91.517,91.45,16.4046]
[1645202750283,5.465,91.516,91.45,16.4046]
[1645202750682,11.16924113,91.516,91.451,109.4]
[1645202750882,0.25,91.517,91.46,16.4041]
[1645202751387,0.25,91.517,91.461,45.72173483]
[1645202751584,47.21726177,91.52,91.461,45.72173483]
[1645202753087,5.465,91.529,91.46,16.4041]
[1645202753287,29.2229,91.54,91.461,109.65]
[1645202753488,5.464,91.559,91.471,109.4]
[1645202753687,24.3657,91.577,91.462,11.464]
[1645202753688,5.464,91.566,91.473,109.4]
[1645202753888,5.463,91.575,91.475,109.4]
[1645202754090,46.62611258,91.574,91.477,109.4]
[1645202754390,6.19603251,91.573,91.479,109.4]
[1645202754592,6.19603251,91.573,91.481,109.4]
[1645202754789,6.19603251,91.573,91.483,109.4]
[1645202754990,6.19603251,91.573,91.484,0.25]
[1645202755191,5.462,91.572,91.484,0.25]
[1645202755387,5.462,91.572,91.476,46.01659512]
[1645202755388,16.48193338,91.572,91.476,46.01659512]
[1645202755587,109.4,91.569,91.48,16.3998]
[1645202755789,5.463,91.568,91.444,5.463]
[1645202755990,26.761183,91.568,91.443,5.463]
[1645202756190,16.48293338,91.567,91.443,5.463]
[1645202756392,16.4036,91.54,91.443,5.463]
[1645202756591,51.0264181,91.538,91.464,158.21749457]
[1645202756995,5.464,91.537,91.464,158.21749457]
[1645202757394,51.0264181,91.538,91.464,158.21749457]
[1645202759016,51.0264181,91.538,91.464,48.81749457]
[1645202759216,5.464,91.537,91.44,5.464]
[1645202759415,16.47306653,91.537,91.426,5.465]
[1645202759618,6.19879975,91.536,91.426,5.465]
[1645202759816,5.465,91.535,91.426,5.465]
[1645202760017,6.19879975,91.534,91.426,5.465]
[1645202760222,12.82,91.53,91.451,109.4]
[1645202760517,46.4508,91.537,91.453,109.4]
[1645202760518,0.25,91.533,91.453,109.4]
[1645202761619,46.4508,91.537,91.46,16.4026]
[1645202761917,12.82,91.56,91.461,115.114]
[1645202762517,12.82,91.56,91.461,5.714]
[1645202762718,73.1240266,91.559,91.462,48.10318099]
[1645202762917,6.19703296,91.558,91.463,0.25]
[1645202763119,5.463,91.557,91.463,5.713]
[1645202763320,61.46399364,91.559,91.463,5.713]
[1645202763719,61.46399364,91.559,91.464,112.0293831]
[1645202763919,61.46399364,91.559,91.466,109.4]
[1645202764119,61.46399364,91.559,91.468,109.4]
[1645202764322,61.46399364,91.559,91.462,48.10318099]
[1645202764323,61.46399364,91.559,91.471,109.4]
[1645202764520,0.25,91.558,91.472,0.25]
[1645202764729,0.25,91.558,91.47,16.4009]
[1645202764730,5.463,91.557,91.47,16.4009]
[1645202764921,5.463,91.557,91.462,48.10318099]
[1645202764922,12.82,91.55,91.462,48.10318099]
[1645202765121,5.464,91.549,91.462,48.10318099]
[1645202765324,16.47817727,91.549,91.462,48.10318099]
[1645202765721,6.19787338,91.548,91.463,109.4]
[1645202765921,29.2226,91.55,91.464,5.464]
[1645202766122,29.2226,91.55,91.465,0.25]
[1645202766521,12.82,91.55,91.465,0.25]
[1645202766721,12.82,91.55,91.462,48.10318099]
[1645202766922,5.464,91.549,91.462,48.10318099]
[1645202767422,41.01773692,91.539,91.462,48.10318099]
[1645202768221,0.25,91.538,91.462,48.10318099]
[1645202770021,6.19755179,91.537,91.462,48.10318099]
[1645202771326,16.405,91.53,91.435,5.464]
[1645202771524,114.865,91.529,91.415,5.465]
[1645202771723,109.4,91.527,91.386,29.8461]
[1645202771926,5.466,91.526,91.387,6.0]
[1645202772124,109.4,91.525,91.388,5.466]
[1645202772329,162.70000049,91.524,91.39,109.4]
[1645202772625,12.82,91.51,91.392,109.4]
[1645202772823,97.28076697,91.509,91.394,109.4]
[1645202773022,6.19755179,91.508,91.396,109.4]
[1645202773225,91.81476697,91.509,91.398,109.4]
[1645202773424,46.9711,91.509,91.421,109.4]
[1645202773629,5.466,91.528,91.422,0.25]
[1645202773830,6.19981387,91.527,91.423,114.865]
[1645202774029,6.19981387,91.528,91.425,109.4]
[1645202774228,6.19981387,91.543,91.427,109.4]
[1645202774527,47.26724622,91.542,91.429,162.34661879]
[1645202774830,6.19981387,91.541,91.461,109.4]
[1645202775027,6.19981387,91.541,91.463,109.4]
[1645202775229,6.19981387,91.541,91.464,0.25]
[1645202775428,0.25,91.54,91.462,40.33968709]
[1645202775629,11.66381387,91.539,91.462,40.33968709]
[1645202776029,6.19981387,91.538,91.462,40.33968709]
[1645202776230,5.464,91.537,91.462,40.33968709]
[1645202776433,6.19981387,91.538,91.47,16.4013]
[1645202776730,16.4031,91.54,91.47,16.4013]
[1645202776731,6.19981387,91.537,91.47,16.4013]
[1645202776930,6.19981387,91.539,91.47,16.4013]
[1645202777132,5.464,91.538,91.47,16.4013]
[1645202777530,6.19981387,91.537,91.47,16.4013]
[1645202777732,5.464,91.536,91.47,16.4013]
[1645202777931,6.19981387,91.537,91.47,16.4013]
[1645202778530,6.19981387,91.538,91.47,16.4013]
[1645202778730,6.19981387,91.536,91.47,16.4013]
[1645202778930,0.25,91.535,91.47,16.4013]
[1645202779230,6.19981387,91.534,91.462,40.33968709]
[1645202779430,16.4048,91.53,91.462,40.33968709]
[1645202779631,12.82,91.52,91.421,109.4]
[1645202779834,5.466,91.519,91.425,0.25]
[1645202780031,6.19981387,91.518,91.386,5.466]
[1645202780231,5.466,91.517,91.41,16.4111]
[1645202780531,53.90685914,91.509,91.43,40.39474421]
[1645202780731,5.466,91.508,91.43,40.39474421]
[1645202780933,14.29519697,91.508,91.43,40.39474421]
[1645202781135,6.19981387,91.507,91.43,40.39474421]
[1645202781336,5.466,91.506,91.43,40.39474421]
[1645202781535,6.19981387,91.505,91.43,40.39474421]
[1645202781736,29.231,91.5,91.41,16.4111]
[1645202781935,29.231,91.5,91.401,109.4]
[1645202781936,11.66581387,91.499,91.4,16.4138]
[1645202782136,37.99779697,91.499,91.4,16.4138]
[1645202782339,8.82919697,91.498,91.4,16.4138]
[1645202782536,5.466,91.497,91.4,16.4138]
[1645202782736,47.00864918,91.484,91.43,44.59992747]
[1645202782938,6.19981387,91.483,91.43,44.59992747]
[1645202783640,6.19981387,91.483,91.464,0.81700537]
[1645202783641,0.25,91.482,91.464,0.81700537]
[1645202784140,6.19981387,91.481,91.464,0.81700537]
[1645202784942,47.00864918,91.484,91.464,0.81700537]
[1645202785341,6.20149155,91.483,91.464,0.81700537]
[1645202785741,47.00864918,91.484,91.464,0.81700537]
[1645202786343,6.20151408,91.483,91.464,0.81700537]
[1645202786848,0.25,91.482,91.464,0.81700537]
[1645202787452,8.0953831,91.519,91.464,0.81700537]
[1645202787649,2.6293831,91.519,91.464,0.81700537]
[1645202787856,6.20018172,91.514,91.464,0.81700537]
[1645202788053,6.20018172,91.514,91.465,49.79672214]
[1645202788251,6.20018172,91.514,91.464,0.81700537]
[1645202788650,11.66518172,91.519,91.464,0.81700537]
[1645202788852,12.82,91.51,91.464,0.81700537]
[1645202789049,6.20018172,91.509,91.464,0.81700537]
[1645202789251,16.4103,91.5,91.42,16.4102]
[1645202789457,11.66618172,91.499,91.42,16.4102]
[1645202789652,6.20018172,91.498,91.42,16.4102]
[1645202789854,5.466,91.497,91.42,16.4102]
[1645202790156,6.20018172,91.496,91.42,16.4102]
[1645202790353,45.56653947,91.495,91.421,46.69653241]
[1645202790556,6.20018172,91.494,91.421,46.69653241]
[1645202790956,16.4118,91.49,91.421,46.69653241]
[1645202791157,6.20018172,91.489,91.421,46.69653241]
[1645202791353,8.82956482,91.489,91.421,46.69653241]
[1645202791554,0.25,91.488,91.421,46.69653241]
[1645202791768,2.8793831,91.488,91.421,46.69653241]
[1645202791970,6.20018172,91.487,91.421,46.69653241]
[1645202792170,8.82956482,91.487,91.421,46.69653241]
[1645202792372,8.0953831,91.486,91.421,46.69653241]
[1645202792573,14.29556482,91.486,91.421,46.69653241]
[1645202792774,8.82956482,91.485,91.421,46.69653241]
[1645202792971,11.66618172,91.484,91.421,46.69653241]
[1645202793175,6.20018172,91.483,91.421,46.69653241]
[1645202793575,8.82956482,91.483,91.421,46.69653241]
[1645202793775,6.20018172,91.482,91.421,46.69653241]
[1645202793973,46.22624353,91.481,91.421,46.69653241]
[1645202794379,6.20018172,91.48,91.421,46.69653241]
[1645202794873,6.20018172,91.479,91.421,46.69653241]
[1645202795073,5.466,91.499,91.421,156.09653241]
[1645202795074,6.20018172,91.489,91.421,156.09653241]
[1645202795473,16.4102,91.5,91.421,156.09653241]
[1645202795474,6.20018172,91.498,91.421,156.09653241]
[1645202795673,6.20018172,91.488,91.421,46.69653241]
[1645202795874,6.20018172,91.499,91.421,46.69653241]
[1645202796677,6.20018172,91.499,91.421,156.09653241]
[1645202797074,2.6293831,91.498,91.421,46.69653241]
[1645202797275,6.20018172,91.497,91.421,46.69653241]
[1645202797475,6.20018172,91.497,91.422,5.716]
[1645202797779,45.03551921,91.499,91.423,109.4]
[1645202797977,6.20018172,91.498,91.424,109.4]
[1645202798276,0.25,91.497,91.424,109.4]
[1645202798478,6.20018172,91.496,91.424,109.4]
[1645202798679,8.82956482,91.496,91.424,109.4]
[1645202798979,19.54263322,91.495,91.422,109.4]
[1645202799184,6.20018172,91.494,91.422,109.4]
[1645202799379,19.54263322,91.494,91.422,109.4]
[1645202799579,8.82956482,91.493,91.422,109.4]
[1645202799778,6.20018172,91.492,91.422,109.4]
[1645202799979,8.82956482,91.492,91.422,109.4]
[1645202800183,6.20018172,91.491,91.422,109.4]
[1645202801380,6.20018172,91.498,91.422,109.4]
[1645202801581,6.20018172,91.499,91.431,109.4]
[1645202801782,6.20018172,91.506,91.433,109.4]
[1645202801982,6.20018172,91.506,91.434,0.25]
[1645202802182,6.20018172,91.506,91.435,5.466]
[1645202802382,6.20018172,91.506,91.437,109.4]
[1645202802584,10.73457028,91.505,91.438,0.25]
[1645202802781,6.20018172,91.504,91.438,0.25]
[1645202802985,6.45018172,91.504,91.438,0.25]
[1645202803182,6.20018172,91.503,91.438,0.25]
[1645202803382,6.20018172,91.503,91.441,109.4]
[1645202803584,6.20018172,91.503,91.442,0.25]
[1645202803788,6.20018172,91.506,91.442,0.25]
[1645202805084,10.7497282,91.505,91.442,0.25]
[1645202805685,6.20018172,91.504,91.442,0.25]
[1645202805886,0.25,91.503,91.442,0.25]
[1645202806086,47.17175928,91.501,91.442,0.25]
[1645202806286,6.20018172,91.5,91.442,0.25]
[1645202806786,10.7497282,91.499,91.436,46.0777939]
[1645202806985,11.66618172,91.498,91.421,22.5378]
[1645202807188,6.20018172,91.497,91.421,22.5378]
[1645202807385,5.466,91.496,91.421,22.5378]
[1645202807587,6.45018172,91.495,91.421,131.9378]
[1645202807989,16.94990992,91.494,91.426,109.4]
[1645202808188,16.94990992,91.494,91.425,41.53785231]
[1645202808390,10.7497282,91.493,91.425,41.53785231]
[1645202808589,16.94990992,91.493,91.425,41.53785231]
[1645202808791,6.20018172,91.492,91.445,46.52917652]
[1645202809189,10.7497282,91.491,91.445,46.52917652]
[1645202809390,6.20018172,91.49,91.445,46.52917652]
[1645202810090,10.7497282,91.489,91.445,46.52917652]
[1645202810292,10.7497282,91.489,91.444,0.81997763]
[1645202810493,8.82956482,91.488,91.444,0.81997763]
[1645202810691,6.20018172,91.487,91.444,0.81997763]
[1645202810891,16.94990992,91.487,91.444,0.81997763]
[1645202811091,6.20018172,91.486,91.444,0.81997763]
[1645202811291,44.1906413,91.485,91.444,0.81997763]
[1645202811492,6.20018172,91.484,91.444,0.81997763]
[1645202811692,16.94990992,91.484,91.444,0.81997763]
[1645202811992,6.20018172,91.483,91.444,0.81997763]
[1645202812192,16.94990992,91.483,91.444,0.81997763]
[1645202812392,6.20018172,91.482,91.444,0.81997763]
[1645202812592,16.94990992,91.482,91.444,0.81997763]
[1645202812791,6.20018172,91.481,91.444,0.81997763]
[1645202812991,16.94990992,91.481,91.444,0.81997763]
[1645202813391,16.94990992,91.48,91.444,0.81997763]
[1645202813593,16.94990992,91.48,91.438,45.30144067]
[1645202813793,16.94990992,91.479,91.438,45.30144067]
[1645202813994,6.20018172,91.478,91.438,45.30144067]
[1645202814194,16.94990992,91.478,91.438,45.30144067]
[1645202814395,6.20018172,91.477,91.438,45.30144067]
[1645202814793,6.20018172,91.478,91.438,45.30144067]
[1645202815394,10.75108725,91.477,91.438,45.30144067]
[1645202815593,6.20018172,91.476,91.438,45.30144067]
[1645202815995,6.20018172,91.476,91.438,0.81952485]
[1645202816296,10.75108725,91.475,91.438,0.81952485]
[1645202816498,6.20018172,91.474,91.438,0.81952485]
[1645202816995,10.75108725,91.473,91.438,0.81952485]
[1645202817198,6.20018172,91.472,91.438,0.81952485]
[1645202817601,12.82,91.47,91.438,0.81952485]
[1645202817900,11.66618172,91.469,91.346,5.466]
[1645202818099,14.29556482,91.469,91.347,109.4]
[1645202818301,14.29556482,91.469,91.371,109.4]
[1645202818302,16.4195,91.45,91.371,109.4]
[1645202818499,12.82,91.46,91.371,109.4]
[1645202818698,5.469,91.459,91.371,109.4]
[1645202818897,47.97028935,91.458,91.373,109.4]
[1645202819096,11.66918172,91.457,91.373,109.4]
[1645202819297,6.20018172,91.456,91.374,5.719]
[1645202819498,10.75466491,91.456,91.381,109.4]
[1645202819698,6.20018172,91.455,91.381,109.4]
[1645202820402,10.75466491,91.454,91.381,109.4]
[1645202820600,6.20018172,91.453,91.372,51.94526831]
[1645202820803,16.4193,91.45,91.372,51.94526831]